fUSD/lending_fUSD_20251105
["ID","MTS","AMOUNT","RATE_DAILY","PERIOD"]
[393191698,1762308644497,-2141.0,0.00031548,2]
[393191699,1762308644507,-2213.0,0.00031566,7]
[393191700,1762308644516,-152.0,0.00031585,3]
[393191701,1762308644525,-500.0,0.0003197,2]
[393191702,1762308644535,-2213.0,0.00031981,2]
[393191703,1762308644545,-1001.34025058,0.00031981,5]
[393191704,1762308644554,-1000.0,0.00031981,5]
[393191705,1762308644563,-151.08,0.00032,7]
[393191706,1762308644573,-482.789414,0.00032054,6]
[393191707,1762308644583,-519.712659,0.00032054,6]
[393191708,1762308644592,-500.07893,0.00032054,6]
[393191709,1762308644601,-1135.75457,0.00032054,6]
[393191710,1762308644612,-156.083284,0.00032054,6]
[393191711,1762308644621,-29107.0,0.000321,2]
[393191712,1762308644631,-152.0,0.00032206,4]
[393191713,1762308644641,-229.99,0.00032243,2]
[393191714,1762308644650,-162.32794439,0.00032289,2]
[393191715,1762308644659,-482.789414,0.00032301,6]
[393191716,1762308644669,-285.390424,0.00032301,6]
[393191717,1762308644679,-519.712659,0.00032301,6]
[393191718,1762308644688,-500.07893,0.00032301,6]
[393191719,1762308644697,-1135.75457,0.00032301,6]
[393191720,1762308644706,-156.083284,0.00032301,6]
[393191721,1762308644715,-300.0,0.00032316,2]
[393191722,1762308644724,-182.75,0.00032444,30]
[393191723,1762308644733,-2213.0,0.00032485,2]
[393191724,1762308644742,-1000.0,0.00032548,2]
[393191725,1762308644751,-151.0,0.00032575,31]
[393191726,1762308644760,-151.0,0.00032575,31]
[393191727,1762308644770,-151.0,0.00032575,31]
[393191728,1762308644779,-200.432926,0.00032575,31]
[393191729,1762308644788,-155.204608,0.00032575,31]
[393191730,1762308644797,-151.0,0.00032575,31]
[393191731,1762308644806,-153.567204,0.00032575,31]
[393191732,1762308644815,-151.0,0.00032575,31]
[393191733,1762308644824,-151.0,0.00032575,31]
[393191734,1762308644834,-152.061175,0.00032575,31]
[393191735,1762308644843,-151.0,0.00032575,31]
[393191736,1762308644852,-1000.0,0.00032578,2]
[393191737,1762308644864,-2213.0,0.00032584,2]
[393191738,1762308644873,-2213.0,0.00032633,2]
[393191739,1762308644882,-5515.0,0.000328,3]
[393191740,1762308644892,-152.0,0.00032827,5]
[393191741,1762308644900,-999.0,0.00032848,2]
[393191742,1762308644911,-805.0,0.00032849,2]
[393191743,1762308644920,-151.0,0.00032851,31]
[393191744,1762308644929,-151.0,0.00032851,31]
[393191745,1762308644939,-151.0,0.00032851,31]
[393191746,1762308644948,-151.0,0.00032851,30]
[393191747,1762308644958,-252.467454,0.00032851,31]
[393191748,1762308644968,-252.467454,0.00032851,31]
[393191749,1762308644978,-151.0,0.00032851,31]
[393191750,1762308644987,-151.0,0.00032851,31]
[393191751,1762308644996,-252.467454,0.00032851,31]
[393191752,1762308645006,-151.0,0.00032851,31]
[393191753,1762308645016,-252.467454,0.00032851,31]
[393191754,1762308645025,-151.0,0.00032851,31]
[393191755,1762308645035,-9088.08200316,0.00032851,2]
[393191756,1762308645044,-481.49661341,0.00032851,15]
[393191757,1762308645053,-151.0,0.00032852,31]
[393191758,1762308645062,-151.0,0.00032852,31]
[393191759,1762308645071,-151.0,0.00032852,31]
[393191760,1762308645080,-151.0,0.00032852,31]
[393191761,1762308645089,-151.0,0.00032852,31]
[393191762,1762308645097,-151.0,0.00032852,31]
[393191763,1762308645110,-158.091425,0.00032852,31]
[393191764,1762308645120,-2213.0,0.00032852,7]
[393191765,1762308645129,-500.0,0.00032865,2]
[393191766,1762308645139,-151.0,0.00032866,31]
[393191767,1762308645148,-151.0,0.00032866,31]
[393191768,1762308645157,-151.0,0.00032866,31]
[393191769,1762308645167,-151.0,0.00032866,31]
[393191770,1762308645176,-151.0,0.00032866,31]
[393191771,1762308645185,-151.0,0.00032866,31]
[393191772,1762308645196,-151.0,0.00032866,31]
[393191773,1762308645205,-151.0,0.00032866,31]
[393191774,1762308645214,-267.725091,0.00032866,31]
[393191775,1762308645223,-230.816404,0.00032866,31]
[393191776,1762308645232,-151.0,0.00032866,31]
[393191777,1762308645241,-152.616466,0.00032866,31]
[393191778,1762308645250,-151.0,0.00032866,31]
[393191779,1762308645259,-151.0,0.00032866,31]
[393191780,1762308645269,-291.198301,0.00032866,28]
[393191781,1762308645278,-291.198301,0.00032866,28]
[393191782,1762308645288,-291.198301,0.00032866,28]
[393191783,1762308645301,-291.198301,0.00032866,28]
[393191784,1762308645310,-151.000013,0.00032866,31]
[393191785,1762308645320,-150.0,0.00032873,5]
[393191786,1762308645329,-500.0,0.00032876,2]
[393191787,1762308645339,-500.0,0.00032876,2]
[393191788,1762308645349,-500.0,0.00032876,2]
[393191789,1762308645361,-500.0,0.00032876,2]
[393191790,1762308645372,-500.0,0.00032876,2]
[393191791,1762308645381,-402.19211532,0.00032876,2]
[393191792,1762308645390,-151.0,0.00032876,31]
[393191793,1762308645400,-162.595946,0.00032876,31]
[393191794,1762308645409,-151.0,0.00032876,31]
[393191795,1762308645418,-151.0,0.00032876,31]
[393191796,1762308645428,-1000.0,0.00032876,2]
[393191797,1762308645437,-1000.0,0.00032876,2]
[393191798,1762308645446,-1000.0,0.00032876,2]
[393191799,1762308645456,-1000.0,0.00032876,2]
[393191800,1762308645465,-1000.0,0.00032876,2]
[393191801,1762308645474,-250.79016794,0.00032876,2]
[393191802,1762308645483,-300.0,0.00032876,2]
[393191803,1762308645492,-300.0,0.00032876,2]
[393191804,1762308645502,-300.0,0.00032876,2]
[393191805,1762308645511,-300.0,0.00032876,2]
[393191806,1762308645522,-300.0,0.00032876,2]
[393191807,1762308645537,-300.0,0.00032876,2]
[393191808,1762308645546,-300.0,0.00032876,2]
[393191809,1762308645555,-300.0,0.00032876,2]
[393191810,1762308645565,-218.36398805,0.00032876,2]
[393191811,1762308645575,-151.0,0.00032876,31]
[393191812,1762308645584,-500.0,0.00032876,2]
[393191813,1762308645593,-500.0,0.00032876,2]
[393191814,1762308645602,-500.0,0.00032876,2]
[393191815,1762308645613,-501.21418892,0.00032876,2]
[393191816,1762308645623,-500.0,0.00032876,2]
[393191817,1762308645633,-500.0,0.00032876,2]
[393191818,1762308645644,-500.0,0.00032876,2]
[393191819,1762308645653,-500.0,0.00032876,2]
[393191820,1762308645663,-500.0,0.00032876,2]
[393191821,1762308645673,-500.0,0.00032876,2]
[393191822,1762308645682,-500.0,0.00032876,2]
[393191823,1762308645692,-500.0,0.00032876,2]
[393191824,1762308645701,-500.0,0.00032876,2]
[393191825,1762308645711,-338.6833518,0.00032876,2]
[393191826,1762308645720,-154.051706,0.00032876,31]
[393191827,1762308645729,-151.0,0.00032876,31]
[393191828,1762308645739,-151.0,0.00032876,31]
[393191829,1762308645748,-151.0,0.00032876,31]
[393191830,1762308645757,-407.245394,0.00032876,31]
[393191831,1762308645766,-151.0,0.00032876,31]
[393191832,1762308645775,-151.0,0.00032876,31]
[393191833,1762308645785,-407.245394,0.00032876,31]
[393191834,1762308645794,-151.0,0.00032876,31]
[393191835,1762308645803,-407.245394,0.00032876,31]
[393191836,1762308645812,-151.0,0.00032876,31]
[393191837,1762308645821,-165.940416,0.00032876,31]
[393191838,1762308645830,-407.245394,0.00032876,31]
[393191839,1762308645839,-162.090791,0.00032876,31]
[393191840,1762308645848,-152.110986,0.00032876,31]
[393191841,1762308645859,-153.913906,0.00032876,31]
[393191842,1762308645869,-153.163445,0.00032876,31]
[393191843,1762308645879,-151.0,0.00032876,31]
[393191844,1762308645888,-151.0,0.00032876,31]
[393191845,1762308645897,-151.0,0.00032876,31]
[393191846,1762308645906,-151.0,0.00032876,31]
[393191847,1762308645915,-151.0,0.00032876,31]
[393191848,1762308645924,-153.395076,0.00032876,31]
[393191849,1762308645933,-502.05799969,0.00032876,120]
[393191850,1762308645942,-151.0,0.00032876,15]
[393191851,1762308645951,-151.0,0.00032876,15]
[393191852,1762308645960,-151.0,0.00032876,15]
[393191853,1762308645969,-151.0,0.00032876,31]
[393191854,1762308645979,-151.0,0.00032876,31]
[393191855,1762308645988,-164.528843,0.00032876,31]
[393191856,1762308645997,-151.0,0.00032876,31]
[393191857,1762308646006,-173.576813,0.00032876,31]
[393191858,1762308646016,-151.0,0.00032876,31]
[393191859,1762308646069,-163.972608,0.00032876,31]
[393191860,1762308646079,-294.714642,0.00032876,31]
[393191861,1762308646087,-500.0,0.00032876,120]
[393191862,1762308646097,-507.33791597,0.00032876,120]
[393191863,1762308646106,-151.0,0.00032876,31]
[393191864,1762308646116,-151.0,0.00032876,31]
[393191865,1762308646124,-151.0,0.00032876,31]
[393191866,1762308646133,-151.0,0.00032876,31]
[393191867,1762308646142,-151.0,0.00032876,31]
[393191868,1762308646151,-432.579819,0.00032876,31]
[393191869,1762308646161,-432.579819,0.00032876,31]
[393191870,1762308646170,-432.579819,0.00032876,31]
[393191871,1762308646179,-432.579819,0.00032876,31]
[393191872,1762308646188,-151.0,0.00032876,31]
[393191873,1762308646197,-151.0,0.00032876,31]
[393191874,1762308646206,-500.0,0.00032876,2]
[393191875,1762308646215,-500.0,0.00032876,2]
[393191876,1762308646224,-500.0,0.00032876,2]
[393191877,1762308646233,-500.0,0.00032876,2]
[393191878,1762308646242,-500.0,0.00032876,2]
[393191879,1762308646251,-500.0,0.00032876,2]
[393191880,1762308646260,-500.0,0.00032876,2]
[393191881,1762308646269,-500.0,0.00032876,2]
[393191882,1762308646278,-500.0,0.00032876,2]
[393191883,1762308646288,-500.0,0.00032876,2]
[393191884,1762308646299,-500.0,0.00032876,2]
[393191885,1762308646308,-500.0,0.00032876,2]
[393191886,1762308646316,-500.0,0.00032876,2]
[393191887,1762308646325,-500.0,0.00032876,2]
[393191888,1762308646335,-500.0,0.00032876,2]
[393191889,1762308646344,-500.0,0.00032876,2]
[393191890,1762308646353,-500.0,0.00032876,2]
[393191891,1762308646365,-500.0,0.00032876,2]
[393191892,1762308646374,-500.0,0.00032876,2]
[393191893,1762308646383,-500.0,0.00032876,2]
[393191894,1762308646392,-500.0,0.00032876,2]
[393191895,1762308646401,-500.0,0.00032876,2]
[393191896,1762308646410,-193.00321115,0.00032876,2]
[393191897,1762308646419,-195.05287,0.00032876,31]
[393191898,1762308646428,-151.0,0.00032876,31]
[393191899,1762308646437,-151.0,0.00032876,31]
[393191900,1762308646446,-151.0,0.00032876,31]
[393191901,1762308646455,-151.000002,0.00032876,31]
[393191902,1762308646465,-330.136094,0.00032876,31]
[393191903,1762308646474,-330.136094,0.00032876,31]
[393191904,1762308646483,-330.136094,0.00032876,31]
[393191905,1762308646493,-330.136094,0.00032876,31]
[393191906,1762308646502,-151.0,0.00032876,31]
[393191907,1762308646511,-151.0,0.00032876,31]
[393191908,1762308646521,-217.205769,0.00032876,31]
[393191909,1762308646531,-217.205769,0.00032876,31]
[393191910,1762308646540,-217.205769,0.00032876,31]
[393191911,1762308646549,-151.0,0.00032876,31]
[393191912,1762308646559,-217.205769,0.00032876,31]
[393191914,1762308646569,-151.0,0.00032876,31]
[393191915,1762308646579,-151.0,0.00032876,31]
[393191916,1762308646588,-151.0,0.00032876,31]
[393191917,1762308646598,-151.0,0.00032876,31]
[393191918,1762308646609,-568.364366,0.00032876,31]
[393191919,1762308646619,-151.0,0.00032876,31]
[393191920,1762308646628,-151.0,0.00032876,31]
[393191921,1762308646637,-568.364366,0.00032876,31]
[393191922,1762308646647,-151.0,0.00032876,31]
[393191923,1762308646657,-151.0,0.00032876,31]
[393191924,1762308646667,-568.364366,0.00032876,31]
[393191925,1762308646676,-151.0,0.00032876,31]
[393191926,1762308646685,-151.0,0.00032876,31]
[393191927,1762308646694,-151.0,0.00032876,31]
[393191928,1762308646703,-568.364366,0.00032876,31]
[393191929,1762308646712,-161.147188,0.00032876,31]
[393191930,1762308646722,-151.0,0.00032876,31]
[393191931,1762308646731,-160.59943,0.00032876,31]
[393191932,1762308646740,-151.0,0.00032876,31]
[393191933,1762308646749,-151.0,0.00032876,31]
[393191934,1762308646758,-161.327678,0.00032876,30]
[393191935,1762308646766,-151.0,0.00032876,31]
[393191936,1762308646775,-500.0,0.00032876,10]
[393191937,1762308646784,-500.0,0.00032876,10]
[393191938,1762308646793,-500.0,0.00032876,10]
[393191939,1762308646801,-500.0,0.00032876,10]
[393191940,1762308646810,-500.0,0.00032876,10]
[393191941,1762308646819,-500.0,0.00032876,10]
[393191942,1762308646828,-500.0,0.00032876,10]
[393191943,1762308646837,-500.0,0.00032876,10]
[393191944,1762308646845,-500.0,0.00032876,10]
[393191945,1762308646856,-171.45858457,0.00032876,10]
[393191946,1762308646868,-151.0,0.00032876,31]
[393191947,1762308646877,-153.899318,0.00032876,31]
[393191948,1762308646887,-151.0,0.00032876,31]
[393191949,1762308646896,-151.0,0.00032876,31]
[393191950,1762308646905,-255.872056,0.00032876,31]
[393191951,1762308646915,-151.0,0.00032876,31]
[393191952,1762308646924,-153.808122,0.00032876,31]
[393191953,1762308646933,-151.0,0.00032876,31]
[393191954,1762308646944,-151.0,0.00032876,31]
[393191955,1762308646954,-5195.66,0.00032876,2]
[393191956,1762308646963,-5195.66,0.00032876,2]
[393191957,1762308646972,-5195.66,0.00032876,2]
[393191958,1762308646981,-5195.66,0.00032876,2]
[393191959,1762308646990,-5195.66,0.00032876,2]
[393191960,1762308646998,-5195.66,0.00032876,2]
[393191961,1762308647008,-5195.66,0.00032876,2]
[393191962,1762308647016,-5195.66,0.00032876,2]
[393191963,1762308647025,-5195.66,0.00032876,2]
[393191964,1762308647034,-5195.66,0.00032876,2]
[393191965,1762308647043,-5195.66,0.00032876,2]
[393191966,1762308647052,-5195.66,0.00032876,2]
[393191967,1762308647061,-5195.66,0.00032876,2]
[393191968,1762308647069,-5195.66,0.00032876,2]
[393191969,1762308647078,-150.0,0.00032877,5]
[393191970,1762308647088,-2213.0,0.00032961,2]
[393191971,1762308647097,-500.0,0.0003297,2]
[393191972,1762308647106,-500.0,0.0003298,120]
[393191973,1762308647120,-500.0,0.0003298,120]
[393191974,1762308647128,-510.1435953,0.0003298,30]
[393191975,1762308647138,-228.74,0.00033,2]
[393191976,1762308647147,-2216.0,0.00033076,7]
[393191977,1762308647156,-610.077,0.00033152,2]
[393191978,1762308647166,-3422.0,0.00033152,2]
[393191979,1762308647176,-1315.0,0.00033152,2]
[393191980,1762308647185,-576.786,0.00033152,2]
[393191981,1762308647195,-1595.0,0.00033152,2]
[393191982,1762308647205,-820.0,0.00033152,2]
[393191983,1762308647215,-1272.0,0.00033152,2]
[393191984,1762308647225,-812.0,0.00033152,2]
[393191985,1762308647243,-155.270578,0.00033152,31]
[393191986,1762308647252,-151.0,0.00033152,31]
[393191987,1762308647262,-151.0,0.00033152,31]
[393191988,1762308647271,-151.0,0.00033152,31]
[393191989,1762308647280,-194.804697,0.00033152,31]
[393191990,1762308647293,-154.681807,0.00033152,31]
[393191991,1762308647303,-2216.0,0.0003322,2]
[393191992,1762308647312,-167.94,0.00033221,2]
[393191993,1762308647321,-1613.0,0.00033253,2]
[393191994,1762308647330,-2213.0,0.00033363,7]
[393191995,1762308647340,-250.0,0.00033421,5]
[393191996,1762308647349,-203.91108501,0.00033425,5]
[393191997,1762308647358,-167.94,0.00033442,2]
[393191998,1762308647370,-152.0,0.00033448,6]
[393191999,1762308647379,-229.99,0.00033483,2]
[393192000,1762308647388,-5515.0,0.000335,5]
[393192001,1762308647397,-2213.0,0.00033583,2]
[393192002,1762308647407,-167.94,0.00033662,2]
[393192003,1762308647416,-200.0,0.00033684,10]
[393192004,1762308647426,-300.0,0.00033686,2]
[393192005,1762308647435,-2213.0,0.00033813,2]
[393192006,1762308647444,-2216.0,0.00033825,2]
[393192007,1762308647454,-2216.0,0.00033832,2]
[393192008,1762308647463,-2216.0,0.00033883,7]
[393192009,1762308647474,-445.2915039,0.00033905,2]
[393192010,1762308647484,-150.0,0.00033907,2]
[393192011,1762308647493,-150.0,0.00033907,120]
[393192012,1762308647502,-250.78168277,0.00033968,5]
[393192013,1762308647512,-2213.0,0.00033978,2]
[393192014,1762308647521,-477.76462643,0.00034,7]
[393192015,1762308647531,-196.12,0.00034005,2]
[393192016,1762308647540,-2216.0,0.00034017,2]
[393192017,1762308647549,-1921.0,0.00034041,3]
[393192018,1762308647558,-152.0,0.00034069,7]
[393192019,1762308647567,-2213.0,0.00034091,2]
[393192020,1762308647577,-202.500631,0.000342,9]
[393192021,1762308647587,-2213.0,0.00034258,2]
[393192022,1762308647595,-207.54456428,0.00034332,4]
[393192023,1762308647606,-500.0,0.0003434,120]
[393192024,1762308647618,-151.0,0.0003434,31]
[393192025,1762308647627,-407.245394,0.0003434,31]
[393192026,1762308647637,-151.0,0.0003434,31]
[393192027,1762308647647,-171.891948,0.0003434,31]
[393192028,1762308647656,-407.245394,0.0003434,31]
[393192029,1762308647666,-151.0,0.0003434,31]
[393192030,1762308647675,-407.245394,0.0003434,31]
[393192031,1762308647685,-151.0,0.0003434,31]
[393192032,1762308647694,-407.245394,0.0003434,31]
[393192033,1762308647704,-151.0,0.0003434,31]
[393192034,1762308647713,-151.0,0.0003434,31]
[393192035,1762308647722,-500.0,0.0003434,120]
[393192036,1762308647731,-175.343849,0.0003434,31]
[393192037,1762308647739,-152.008642,0.0003434,31]
[393192038,1762308647749,-153.628635,0.0003434,31]
[393192039,1762308647758,-151.0,0.0003434,15]
[393192040,1762308647767,-151.0,0.0003434,15]
[393192041,1762308647775,-151.0,0.0003434,15]
[393192042,1762308647784,-153.864671,0.0003434,31]
[393192043,1762308647793,-151.0,0.0003434,31]
[393192044,1762308647802,-151.0,0.0003434,31]
[393192045,1762308647811,-150.0,0.0003434,20]
[393192046,1762308647819,-500.0,0.00034349,120]
[393192047,1762308647828,-500.0,0.00034349,120]
[393192048,1762308647838,-151.0,0.00034349,31]
[393192049,1762308647847,-151.0,0.00034349,31]
[393192050,1762308647856,-151.0,0.00034349,31]
[393192051,1762308647866,-151.0,0.00034349,31]
[393192052,1762308647876,-151.0,0.00034349,31]
[393192053,1762308647885,-151.0,0.00034349,31]
[393192054,1762308647895,-151.0,0.00034349,31]
[393192055,1762308647903,-151.0,0.00034349,31]
[393192056,1762308647913,-151.0,0.00034349,31]
[393192057,1762308647922,-151.0,0.00034349,31]
[393192058,1762308647931,-151.0,0.00034349,31]
[393192059,1762308647943,-291.198301,0.00034349,28]
[393192060,1762308647952,-291.198301,0.00034349,28]
[393192061,1762308647961,-291.198301,0.00034349,28]
[393192062,1762308647970,-291.198301,0.00034349,28]
[393192063,1762308647979,-500.0,0.00034349,2]
[393192064,1762308647989,-500.0,0.00034349,2]
[393192065,1762308647998,-123880.95511,0.0003435,2]
[393192066,1762308648007,-140392.1284173,0.0003435,2]
[393192067,1762308648016,-6159.4703335,0.0003435,2]
[393192068,1762308648026,-165.193092,0.0003435,31]
[393192069,1762308648035,-151.0,0.0003435,31]
[393192070,1762308648044,-155.808284,0.0003435,31]
[393192071,1762308648053,-186.946483,0.0003435,31]
[393192072,1762308648062,-151.0,0.0003435,31]
[393192073,1762308648072,-229.112047,0.0003435,31]
[393192074,1762308648081,-151.0,0.0003435,31]
[393192075,1762308648089,-151.0,0.0003435,31]
[393192076,1762308648099,-151.0,0.0003435,31]
[393192077,1762308648108,-151.0,0.0003435,31]
[393192078,1762308648118,-151.0,0.0003435,31]
[393192079,1762308648127,-151.0,0.0003435,31]
[393192080,1762308648136,-151.0,0.0003435,31]
[393192081,1762308648145,-432.579819,0.0003435,31]
[393192082,1762308648153,-432.579819,0.0003435,31]
[393192083,1762308648162,-432.579819,0.0003435,31]
[393192084,1762308648171,-432.579819,0.0003435,31]
[393192085,1762308648180,-151.0,0.0003435,31]
[393192086,1762308648189,-151.0,0.0003435,31]
[393192087,1762308648199,-151.0,0.0003435,31]
[393192088,1762308648207,-278.241517,0.0003435,31]
[393192089,1762308648216,-151.0,0.0003435,31]
[393192090,1762308648225,-330.136094,0.0003435,31]
[393192091,1762308648235,-330.136094,0.0003435,31]
[393192092,1762308648246,-330.136094,0.0003435,31]
[393192093,1762308648256,-330.136094,0.0003435,31]
[393192094,1762308648266,-151.0,0.0003435,31]
[393192095,1762308648276,-187.221612,0.0003435,31]
[393192096,1762308648285,-217.205769,0.0003435,31]
[393192097,1762308648298,-217.205769,0.0003435,31]
[393192098,1762308648308,-217.205769,0.0003435,31]
[393192099,1762308648317,-151.0,0.0003435,31]
[393192100,1762308648326,-217.205769,0.0003435,31]
[393192101,1762308648337,-151.0,0.0003435,31]
[393192102,1762308648346,-151.0,0.0003435,31]
[393192103,1762308648355,-151.0,0.0003435,31]
[393192104,1762308648367,-151.0,0.0003435,31]
[393192105,1762308648377,-568.364366,0.0003435,31]
[393192106,1762308648386,-158.55006,0.0003435,31]
[393192107,1762308648396,-151.0,0.0003435,31]
[393192108,1762308648405,-568.364366,0.0003435,31]
[393192109,1762308648414,-159.712931,0.0003435,31]
[393192110,1762308648424,-151.0,0.0003435,31]
[393192111,1762308648433,-568.364366,0.0003435,31]
[393192112,1762308648442,-151.0,0.0003435,31]
[393192113,1762308648452,-151.0,0.0003435,31]
[393192114,1762308648461,-151.0,0.0003435,31]
[393192115,1762308648471,-151.0,0.0003435,31]
[393192116,1762308648481,-568.364366,0.0003435,31]
[393192117,1762308648491,-151.0,0.0003435,31]
[393192118,1762308648501,-151.0,0.0003435,31]
[393192119,1762308648511,-151.0,0.0003435,31]
[393192120,1762308648520,-151.0,0.0003435,31]
[393192121,1762308648530,-151.0,0.0003435,31]
[393192122,1762308648539,-151.0,0.0003435,31]
[393192123,1762308648548,-151.0,0.0003435,31]
[393192124,1762308648558,-151.0,0.0003435,31]
[393192125,1762308648568,-151.0,0.0003435,31]
[393192126,1762308648578,-151.0,0.0003435,31]
[393192127,1762308648588,-182.039707,0.0003435,31]
[393192128,1762308648598,-151.0,0.0003435,31]
[393192129,1762308648608,-151.0,0.0003435,30]
[393192130,1762308648619,-252.467454,0.0003435,31]
[393192131,1762308648628,-252.467454,0.0003435,31]
[393192132,1762308648638,-151.0,0.0003435,31]
[393192133,1762308648648,-151.0,0.0003435,31]
[393192134,1762308648658,-252.467454,0.0003435,31]
[393192135,1762308648667,-151.0,0.0003435,31]
[393192136,1762308648677,-252.467454,0.0003435,31]
[393192137,1762308648687,-154.277202,0.0003435,31]
[393192138,1762308648696,-151.0,0.0003435,31]
[393192139,1762308648707,-151.0,0.0003435,31]
[393192140,1762308648717,-151.0,0.0003435,31]
[393192141,1762308648727,-151.0,0.0003435,31]
[393192142,1762308648736,-151.0,0.0003435,31]
[393192143,1762308648746,-151.0,0.0003435,31]
[393192144,1762308648756,-182.75,0.00034388,30]
[393192145,1762308648766,-1966.67324541,0.000344,2]
[393192146,1762308648775,-2000.0,0.000344,2]
[393192147,1762308648786,-20465.19,0.000344,14]
[393192148,1762308648796,-2216.0,0.00034488,2]
[393192149,1762308648805,-6159.001,0.00034548,2]
[393192150,1762308648815,-559.0,0.00034548,2]
[393192151,1762308648824,-6473.0,0.00034548,2]
[393192152,1762308648833,-2213.0,0.00034552,2]
[393192153,1762308648842,-2213.0,0.00034556,2]
[393192154,1762308648851,-9088.08200316,0.00034627,2]
[393192155,1762308648860,-481.49661341,0.00034627,15]
[393192156,1762308648869,-2213.0,0.00034634,2]
[393192157,1762308648878,-152.0,0.0003469,8]
[393192158,1762308648887,-2213.0,0.00034722,2]
[393192159,1762308648897,-689.1,0.00034867,30]
[393192160,1762308648906,-152.0,0.00035311,9]
[393192161,1762308648915,-20465.19,0.000354,14]
[393192162,1762308648925,-8682.45668421,0.00035471,5]
[393192163,1762308648934,-156.73,0.00035533,60]
[393192164,1762308648943,-155.9,0.00035533,60]
[393192165,1762308648952,-999.0,0.00035588,120]
[393192166,1762308648961,-500.0,0.00035616,120]
[393192167,1762308648970,-500.0,0.00035616,120]
[393192168,1762308648979,-500.0,0.00035616,120]
[393192169,1762308648988,-500.0,0.00035616,120]
[393192170,1762308648998,-500.0,0.00035616,120]
[393192171,1762308649007,-500.0,0.00035616,120]
[393192172,1762308649016,-500.0,0.00035616,120]
[393192173,1762308649025,-500.0,0.00035616,120]
[393192174,1762308649035,-500.0,0.00035616,120]
[393192175,1762308649043,-500.0,0.00035616,120]
[393192176,1762308649053,-500.0,0.00035616,120]
[393192177,1762308649061,-500.0,0.00035616,120]
[393192178,1762308649070,-500.0,0.00035616,120]
[393192179,1762308649079,-500.0,0.00035616,120]
[393192180,1762308649088,-500.0,0.00035616,120]
[393192181,1762308649098,-500.0,0.00035616,120]
[393192182,1762308649107,-518.2817857,0.00035616,120]
[393192183,1762308649117,-1000.0,0.00035616,5]
[393192184,1762308649126,-151.0,0.00035616,31]
[393192185,1762308649135,-193.696487,0.00035616,31]
[393192186,1762308649145,-162.850782,0.00035616,31]
[393192187,1762308649153,-156.73,0.00035633,60]
[393192188,1762308649162,-155.9,0.00035633,60]
[393192189,1762308649172,-156.73,0.00035733,60]
[393192190,1762308649180,-155.9,0.00035733,60]
[393192191,1762308649190,-300.6164531,0.00035735,3]
[393192192,1762308649199,-198.40813263,0.00035751,2]
[393192193,1762308649208,-1000.0,0.000358,7]
[393192194,1762308649217,-156.73,0.00035833,60]
[393192195,1762308649227,-155.92,0.00035833,60]
[393192196,1762308649237,-162.32794439,0.00035876,2]
[393192197,1762308649246,-166.0,0.0003589,30]
[393192198,1762308649255,-152.0,0.00035932,10]